[Event "94th FRA-ch Open B 2019"]
[Site "Chartres"]
[Date "2019.08.19"]
[Round "3.6"]
[White "Hurstel, Alexis"]
[Black "Charles, Simon"]
[Result "1-0"]
[ECO "B31"]
[WhiteElo "1810"]
[BlackElo "1908"]
[Annotator "NA"]
[PlyCount "105"]
[EventDate "2019.08.17"]
[EventType "swiss"]
[EventCountry "FRA"]
[SourceTitle "playchess.com"]
[Source "ChessBase"]
[SourceQuality "1"]
[TimeControl "40/5400+30:1800+30"]

1. e4 {[%emt 0:00:00]} c5 {[%emt 0:00:00]} 2. Nf3 {[%emt 0:00:00]} Nc6 {[%emt 0:00:00]} 3. Bb5 {[%emt 0:00:00]} g6 {[%emt 0:00:00]} 4. Bxc6 {[%emt 0:00:00]} dxc6 {[%emt 0:00:00]} 5. h3 {[%emt 0:00:00]} Bg7 {[%emt 0:00:03]} 6. d3 {[%emt 0:00:16]} e5 {[%emt 0:00:19]} 7. O-O {[%emt 0:00:13]} Ne7 {[%emt 0:01:00]} 8. Nc3 {[%emt 0:00:28]} Be6 {[%emt 0:00:53]} 9. Be3 {[%emt 0:00:08]} b6 {[%emt 0:00:46]} 10. Qd2 {[%emt 0:01:34]} h6 {[%emt 0:01:00]} 11. a4 {[%emt 0:00:31]} a5 {[%emt 0:00:12]} 12. Rad1 {[%emt 0:00:44]} f5 {[%emt 0:02:17]} 13. Qe2 {[%emt 0:06:27]} f4 {[%emt 0:04:44]} 14. Bc1 {[%emt 0:00:22]} g5 {[%emt 0:02:04]} 15. Nh2 {[%emt 0:03:42]} h5 {[%emt 0:03:58]} 16. Nb1 {[%emt 0:06:45]} Qd7 {[%emt 0:02:02]} 17. f3 {[%emt 0:00:16]} Bf6 {[%emt 0:14:39]} 18. Na3 {[%emt 0:03:06]} Kf7 {[%emt 0:09:56]} 19. Nc4 {[%emt 0:00:23]} Qc7 {[%emt 0:00:43]} 20. b3 {[%emt 0:01:50]} Rhg8 {[%emt 0:05:14]} 21. Bb2 {[%emt 0:05:37]} Rab8 {[%emt 0:04:34]} 22. Ba3 {[%emt 0:06:27]} Rg6 {[%emt 0:03:18]} 23. c3 {[%emt 0:06:19]} g4 {[%emt 0:04:55]} 24. fxg4 {[%emt 0:00:45]} hxg4 {[%emt 0:00:11]} 25. Nxg4 {[%emt 0:03:09]} Bxg4 {[%emt 0:00:15]} 26. hxg4 {[%emt 0:00:05]} b5 {[%emt 0:00:31]} 27. Nd2 {[%emt 0:01:18]} b4 {[%emt 0:00:36]} 28. cxb4 {[%emt 0:00:45]} cxb4 {[%emt 0:00:16]} 29. Bb2 {[%emt 0:00:10]} Rh8 {[%emt 0:01:55]} 30. d4 {[%emt 0:03:49]} exd4 {[%emt 0:18:22]} 31. Qc4+ {[%emt 0:01:08]} Ke8 {[%emt 0:03:32]} 32. Bxd4 {[%emt 0:02:23]} f3 {[%emt 0:04:32]} 33. Nxf3 {[%emt 0:02:58]} Qg3 {[%emt 0:01:51]} 34. Bb6 {[%emt 0:08:48]} Kf8 {[%emt 0:03:52]} 35. Rd8+ {[%emt 0:08:09]} Kg7 {[%emt 0:00:06]} 36. Rxh8 {[%emt 0:00:11]} Kxh8 {[%emt 0:00:13]} 37. g5 {[%emt 0:16:32]} Bg7 {[%emt 0:03:01]} 38. Bc5 {[%emt 0:00:55]} Ng8 {[%emt 0:00:35]} 39. Qf7 {[%emt 0:01:48]} Rxg5 {[%emt 0:07:05]} 40. Nxg5 {[%emt 0:00:41]} Qxg5 {[%emt 0:00:00]} 41. Qf5 {[%emt 0:31:03]} Qd2 {[%emt 0:24:27]} 42. Qh5+ {[%emt 0:01:48]} Nh6 {[%emt 0:00:11]} 43. Qe8+ {[%emt 0:00:23]} Kh7 {[%emt 0:00:11]} 44. Qxc6 {[%emt 0:01:57]} Ng4 {[%emt 0:01:07]} 45. Qd5 {[%emt 0:02:07]} Qc3 {[%emt 0:02:18]} 46. Qf5+ {[%emt 0:02:42]} Kg8 {[%emt 0:00:17]} 47. Qxg4 {[%emt 0:01:11]} Qxc5+ {[%emt 0:00:08]} 48. Kh1 {[%emt 0:00:04]} Qc2 {[%emt 0:00:55]} 49. Rf3 {[%emt 0:00:26]} Qc1+ {[%emt 0:00:35]} 50. Kh2 {[%emt 0:00:08]} Qh6+ {[%emt 0:00:55]} 51. Rh3 {[%emt 0:00:45]} Qd6+ {[%emt 0:00:09]} 52. e5 {[%emt 0:02:22]} Qxe5+ {[%emt 0:00:14]} 53. Rg3 {[%emt 0:00:05]} 1-0

[Event "94th FRA-ch Open B 2019"]
[Site "Chartres"]
[Date "2019.08.20"]
[Round "4.1"]
[White "Pinson, Alexis"]
[Black "Le Solleu, Guillaume"]
[Result "1-0"]
[ECO "B43"]
[WhiteElo "1841"]
[BlackElo "1944"]
[Annotator "NA"]
[PlyCount "55"]
[EventDate "2019.08.17"]
[EventType "swiss"]
[EventCountry "FRA"]
[SourceTitle "playchess.com"]
[Source "ChessBase"]
[SourceQuality "1"]
[TimeControl "40/5400+30:1800+30"]

1. e4 {[%emt 0:00:00]} c5 {[%emt 0:00:00]} 2. Nc3 {[%emt 0:00:00]} e6 {[%emt 0:00:00]} 3. Nf3 {[%emt 0:00:35]} a6 {[%emt 0:00:00]} 4. d4 {[%emt 0:00:10]} cxd4 {[%emt 0:00:00]} 5. Nxd4 {[%emt 0:00:05]} b5 {[%emt 0:00:10]} 6. a3 {[%emt 0:00:41]} Bb7 {[%emt 0:00:06]} 7. Bd3 {[%emt 0:00:53]} Qb6 {[%emt 0:01:38]} 8. Nf3 {[%emt 0:01:00]} Qc7 {[%emt 0:00:39]} 9. O-O {[%emt 0:00:34]} Nc6 {[%emt 0:01:21]} 10. Be3 {[%emt 0:02:56]} Nf6 {[%emt 0:01:35]} 11. Qd2 {[%emt 0:00:58]} d6 {[%emt 0:10:41]} 12. Rfe1 {[%emt 0:07:21]} Ng4 {[%emt 0:09:40]} 13. Bf4 {[%emt 0:02:25]} Nge5 {[%emt 0:01:28]} 14. Nxe5 {[%emt 0:02:22]} dxe5 {[%emt 0:03:16]} 15. Be3 {[%emt 0:00:25]} Be7 {[%emt 0:03:44]} 16. Qe2 {[%emt 0:01:52]} O-O {[%emt 0:02:26]} 17. Qg4 {[%emt 0:04:56]} Nd4 {[%emt 0:27:36]} 18. Bh6 {[%emt 0:10:28]} Bf6 {[%emt 0:00:49]} 19. Re3 {[%emt 0:01:06]} Kh8 {[%emt 0:00:49]} 20. Bg5 {[%emt 0:01:45]} Qe7 {[%emt 0:10:00]} 21. h4 {[%emt 0:06:17]} h6 {[%emt 0:05:54]} 22. Rh3 {[%emt 0:03:17]} Kh7 {[%emt 0:06:26]} 23. f4 {[%emt 0:09:51]} g6 {[%emt 0:02:57]} 24. fxe5 {[%emt 0:08:23]} Bxg5 {[%emt 0:00:21]} 25. hxg5 {[%emt 0:00:05]} h5 {[%emt 0:01:03]} 26. Nd5 {[%emt 0:01:05]} exd5 {[%emt 0:02:54]} 27. exd5 {[%emt 0:00:10]} Qxe5 {[%emt 0:00:17]} 28. Qxh5+ {[%emt 0:00:12]} 1-0

[Event "94th FRA-ch Open B 2019"]
[Site "Chartres"]
[Date "2019.08.20"]
[Round "4.2"]
[White "Charon, Olivier"]
[Black "Chabaud, Mathis"]
[Result "0-1"]
[ECO "B23"]
[WhiteElo "1834"]
[BlackElo "1915"]
[Annotator "NA"]
[PlyCount "94"]
[EventDate "2019.08.17"]
[EventType "swiss"]
[EventCountry "FRA"]
[SourceTitle "playchess.com"]
[Source "ChessBase"]
[SourceQuality "1"]
[TimeControl "40/5400+30:1800+30"]

1. e4 {[%emt 0:00:00]} c5 {[%emt 0:00:00]} 2. Nc3 {[%emt 0:00:00]} Nc6 {[%emt 0:00:00]} 3. b3 {[%emt 0:00:00]} e5 {[%emt 0:01:51]} 4. Bc4 {[%emt 0:02:25]} d6 {[%emt 0:02:46]} 5. Qh5 {[%emt 0:02:49]} g6 {[%emt 0:05:13]} 6. Qf3 {[%emt 0:01:09]} Nf6 {[%emt 0:04:36]} 7. Nge2 {[%emt 0:00:16]} Bg4 {[%emt 0:07:29]} 8. Qg3 {[%emt 0:00:07]} h5 {[%emt 0:01:35]} 9. f3 {[%emt 0:01:09]} h4 {[%emt 0:03:06]} 10. Qf2 {[%emt 0:00:06]} Bd7 {[%emt 0:01:19]} 11. O-O {[%emt 0:01:32]} Be7 {[%emt 0:08:19]} 12. f4 {[%emt 0:00:18]} Qc7 {[%emt 0:06:43]} 13. fxe5 {[%emt 0:01:53]} Nxe5 {[%emt 0:00:40]} 14. Nd5 {[%emt 0:00:10]} Nxd5 {[%emt 0:00:46]} 15. Bxd5 {[%emt 0:00:08]} O-O-O {[%emt 0:01:18]} 16. b4 {[%emt 0:01:18]} Be6 {[%emt 0:05:25]} 17. bxc5 {[%emt 0:00:23]} dxc5 {[%emt 0:00:53]} 18. h3 {[%emt 0:01:28]} Bxd5 {[%emt 0:01:12]} 19. exd5 {[%emt 0:03:40]} Rh5 {[%emt 0:01:14]} 20. d4 {[%emt 0:04:26]} cxd4 {[%emt 0:04:13]} 21. Nxd4 {[%emt 0:00:11]} Bc5 {[%emt 0:01:29]} 22. Be3 {[%emt 0:00:07]} Nc4 {[%emt 0:02:06]} 23. c3 {[%emt 0:02:05]} Nxe3 {[%emt 0:01:27]} 24. Qxe3 {[%emt 0:00:08]} Rhxd5 {[%emt 0:01:14]} 25. Qh6 {[%emt 0:02:01]} Qg3 {[%emt 0:04:45]} 26. Rad1 {[%emt 0:03:52]} Qxc3 {[%emt 0:03:58]} 27. Kh1 {[%emt 0:00:40]} Rxd4 {[%emt 0:05:15]} 28. Rc1 {[%emt 0:00:28]} Qa5 {[%emt 0:00:29]} 29. Qe3 {[%emt 0:01:31]} R4d5 {[%emt 0:02:46]} 30. Qe7 {[%emt 0:02:43]} Qc7 {[%emt 0:02:03]} 31. Qxh4 {[%emt 0:00:36]} Kb8 {[%emt 0:01:25]} 32. a4 {[%emt 0:03:55]} Qe7 {[%emt 0:00:35]} 33. Qg4 {[%emt 0:02:25]} Qg5 {[%emt 0:02:17]} 34. Qe4 {[%emt 0:01:15]} Qe5 {[%emt 0:01:02]} 35. Qxe5+ {[%emt 0:09:44]} Rxe5 {[%emt 0:00:07]} 36. Rxf7 {[%emt 0:00:06]} Rde8 {[%emt 0:01:09]} 37. Kh2 {[%emt 0:00:33]} Bd6 {[%emt 0:00:54]} 38. Rd7 {[%emt 0:00:19]} Re1+ {[%emt 0:00:31]} 39. Rxd6 {[%emt 0:00:09]} Rxc1 {[%emt 0:00:06]} 40. Rxg6 {[%emt 0:00:06]} Rc3 {[%emt 0:02:05]} 41. Rg4 {[%emt 0:30:16]} a6 {[%emt 0:30:47]} 42. h4 {[%emt 0:00:09]} b5 {[%emt 0:00:40]} 43. axb5 {[%emt 0:00:18]} axb5 {[%emt 0:00:07]} 44. Rb4 {[%emt 0:00:02]} Re5 {[%emt 0:00:40]} 45. g3 {[%emt 0:00:06]} Rc4 {[%emt 0:00:49]} 46. Rb3 {[%emt 0:00:18]} b4 {[%emt 0:00:32]} 47. Kh3 {[%emt 0:00:08]} Kc7 {[%emt 0:00:44]} 0-1

[Event "94th FRA-ch Open B 2019"]
[Site "Chartres"]
[Date "2019.08.20"]
[Round "4.3"]
[White "Hurstel, Alexis"]
[Black "Fretel, Liza"]
[Result "0-1"]
[ECO "B30"]
[WhiteElo "1810"]
[BlackElo "1859"]
[Annotator "NA"]
[PlyCount "72"]
[EventDate "2019.08.17"]
[EventType "swiss"]
[EventCountry "FRA"]
[SourceTitle "playchess.com"]
[Source "ChessBase"]
[SourceQuality "1"]
[TimeControl "40/5400+30:1800+30"]

1. e4 {[%emt 0:00:00]} c5 {[%emt 0:00:00]} 2. Nf3 {[%emt 0:00:00]} Nc6 {[%emt 0:00:00]} 3. Bb5 {[%emt 0:00:00]} Nf6 {[%emt 0:00:11]} 4. e5 {[%emt 0:00:17]} Nd5 {[%emt 0:00:12]} 5. O-O {[%emt 0:00:11]} Nc7 {[%emt 0:00:10]} 6. Bxc6 {[%emt 0:00:09]} dxc6 {[%emt 0:00:20]} 7. Nc3 {[%emt 0:02:23]} Bg4 {[%emt 0:01:13]} 8. Re1 {[%emt 0:01:07]} g6 {[%emt 0:00:54]} 9. d3 {[%emt 0:00:48]} Ne6 {[%emt 0:02:02]} 10. h3 {[%emt 0:01:12]} Bxf3 {[%emt 0:00:08]} 11. Qxf3 {[%emt 0:00:09]} Nd4 {[%emt 0:00:17]} 12. Qd1 {[%emt 0:00:16]} Bg7 {[%emt 0:02:18]} 13. Bf4 {[%emt 0:05:49]} O-O {[%emt 0:00:58]} 14. Ne4 {[%emt 0:01:00]} Qb6 {[%emt 0:02:59]} 15. b3 {[%emt 0:05:00]} Rad8 {[%emt 0:11:45]} 16. Qd2 {[%emt 0:00:55]} Nf5 {[%emt 0:08:02]} 17. Rad1 {[%emt 0:03:44]} f6 {[%emt 0:04:09]} 18. exf6 {[%emt 0:03:24]} exf6 {[%emt 0:00:56]} 19. Qc3 {[%emt 0:00:56]} Rd5 {[%emt 0:03:45]} 20. Qc4 {[%emt 0:02:45]} Qa5 {[%emt 0:08:13]} 21. a4 {[%emt 0:04:24]} Kh8 {[%emt 0:03:47]} 22. Bd2 {[%emt 0:02:40]} Qb6 {[%emt 0:02:39]} 23. a5 {[%emt 0:10:45]} Qa6 {[%emt 0:03:55]} 24. Qc3 {[%emt 0:09:20]} b6 {[%emt 0:02:40]} 25. axb6 {[%emt 0:02:12]} axb6 {[%emt 0:00:06]} 26. b4 {[%emt 0:05:46]} Nd4 {[%emt 0:04:04]} 27. Ra1 {[%emt 0:27:35]} Qb7 {[%emt 0:02:59]} 28. Qc4 {[%emt 0:00:16]} f5 {[%emt 0:01:44]} 29. Ng3 {[%emt 0:03:38]} f4 {[%emt 0:03:07]} 30. Ne4 {[%emt 0:00:09]} f3 {[%emt 0:01:04]} 31. Rad1 {[%emt 0:01:34]} fxg2 {[%emt 0:01:28]} 32. Kxg2 {[%emt 0:00:58]} b5 {[%emt 0:01:22]} 33. Qa2 {[%emt 0:00:15]} Qf7 {[%emt 0:00:48]} 34. Kf1 {[%emt 0:01:59]} Qf3 {[%emt 0:00:27]} 35. Kg1 {[%emt 0:01:01]} Qxh3 {[%emt 0:00:22]} 36. Re3 {[%emt 0:00:49]} Qg4+ {[%emt 0:00:55]} 0-1

[Event "94th FRA-ch Open B 2019"]
[Site "Chartres"]
[Date "2019.08.20"]
[Round "4.4"]
[White "Trouville, Remi"]
[Black "Martin, Axel"]
[Result "1/2-1/2"]
[ECO "D02"]
[WhiteElo "1991"]
[BlackElo "1998"]
[Annotator "NA"]
[PlyCount "61"]
[EventDate "2019.08.17"]
[EventType "swiss"]
[EventCountry "FRA"]
[SourceTitle "playchess.com"]
[Source "ChessBase"]
[SourceQuality "1"]
[TimeControl "40/5400+30:1800+30"]

1. d4 {[%emt 0:00:00]} d5 {[%emt 0:00:00]} 2. Nf3 {[%emt 0:00:08]} Nf6 {[%emt 0:00:00]} 3. g3 {[%emt 0:01:27]} c5 {[%emt 0:00:05]} 4. e3 {[%emt 0:14:06]} Nbd7 {[%emt 0:10:03]} 5. Bg2 {[%emt 0:00:41]} b6 {[%emt 0:00:20]} 6. O-O {[%emt 0:02:59]} Bb7 {[%emt 0:03:45]} 7. a4 {[%emt 0:09:12]} g6 {[%emt 0:05:24]} 8. Nc3 {[%emt 0:14:50]} Bg7 {[%emt 0:03:41]} 9. Ne5 {[%emt 0:09:09]} Nxe5 {[%emt 0:00:30]} 10. dxe5 {[%emt 0:00:30]} Ne4 {[%emt 0:00:30]} 11. f4 {[%emt 0:00:30]} O-O {[%emt 0:00:30]} 12. Ne2 {[%emt 0:00:30]} e6 {[%emt 0:27:48]} 13. b3 {[%emt 0:09:36]} Qc7 {[%emt 0:03:07]} 14. Bb2 {[%emt 0:00:59]} Rfd8 {[%emt 0:01:18]} 15. Qe1 {[%emt 0:02:53]} Rac8 {[%emt 0:04:07]} 16. g4 {[%emt 0:02:41]} Ba6 {[%emt 0:03:13]} 17. c4 {[%emt 0:04:06]} Bb7 {[%emt 0:01:13]} 18. Bxe4 {[%emt 0:00:38]} dxe4 {[%emt 0:03:15]} 19. Bc3 {[%emt 0:04:18]} Rd3 {[%emt 0:04:39]} 20. Nc1 {[%emt 0:00:25]} Rd7 {[%emt 0:00:09]} 21. Ra2 {[%emt 0:00:22]} Bc6 {[%emt 0:02:44]} 22. Rff2 {[%emt 0:00:43]} a6 {[%emt 0:01:25]} 23. Rfd2 {[%emt 0:02:06]} b5 {[%emt 0:01:48]} 24. Qd1 {[%emt 0:06:56]} Rxd2 {[%emt 0:06:43]} 25. Rxd2 {[%emt 0:00:33]} b4 {[%emt 0:01:00]} 26. Bb2 {[%emt 0:00:37]} a5 {[%emt 0:02:08]} 27. g5 {[%emt 0:01:28]} Bf8 {[%emt 0:01:05]} 28. Kf2 {[%emt 0:00:03]} Bg7 {[%emt 0:00:06]} 29. Kg1 {[%emt 0:00:04]} Bf8 {[%emt 0:00:04]} 30. Kf2 {[%emt 0:00:03]} Bg7 {[%emt 0:00:06]} 31. Kg1 {[%emt 0:12:57]} 1/2-1/2

[Event "94th FRA-ch Open B 2019"]
[Site "Chartres"]
[Date "2019.08.20"]
[Round "4.5"]
[White "Delin, Valere"]
[Black "Gelos, Guillaume"]
[Result "1-0"]
[ECO "B77"]
[WhiteElo "1866"]
[BlackElo "1905"]
[Annotator "NA"]
[PlyCount "55"]
[EventDate "2019.08.17"]
[EventType "swiss"]
[EventCountry "FRA"]
[SourceTitle "playchess.com"]
[Source "ChessBase"]
[SourceQuality "1"]
[TimeControl "40/5400+30:1800+30"]

1. e4 {[%emt 0:00:00]} c5 {[%emt 0:00:00]} 2. Nf3 {[%emt 0:00:00]} Nc6 {[%emt 0:00:00]} 3. d4 {[%emt 0:00:00]} cxd4 {[%emt 0:00:00]} 4. Nxd4 {[%emt 0:00:00]} g6 {[%emt 0:00:00]} 5. Nc3 {[%emt 0:00:00]} Bg7 {[%emt 0:00:00]} 6. Be3 {[%emt 0:00:00]} Nf6 {[%emt 0:00:00]} 7. Bc4 {[%emt 0:00:14]} O-O {[%emt 0:00:00]} 8. Bb3 {[%emt 0:00:09]} d6 {[%emt 0:00:10]} 9. f3 {[%emt 0:00:42]} Bd7 {[%emt 0:00:05]} 10. Qd2 {[%emt 0:00:22]} Nxd4 {[%emt 0:01:11]} 11. Bxd4 {[%emt 0:00:30]} b5 {[%emt 0:00:38]} 12. O-O {[%emt 0:07:46]} a5 {[%emt 0:08:44]} 13. a3 {[%emt 0:12:25]} Qc7 {[%emt 0:07:30]} 14. Kh1 {[%emt 0:06:27]} Rfb8 {[%emt 0:08:22]} 15. Bxf6 {[%emt 0:04:58]} exf6 {[%emt 0:04:49]} 16. Rad1 {[%emt 0:05:52]} Ra6 {[%emt 0:13:27]} 17. f4 {[%emt 0:06:09]} Be8 {[%emt 0:24:25]} 18. f5 {[%emt 0:03:16]} g5 {[%emt 0:03:25]} 19. Rf3 {[%emt 0:12:58]} Bc6 {[%emt 0:04:33]} 20. h4 {[%emt 0:07:02]} Qb7 {[%emt 0:07:39]} 21. hxg5 {[%emt 0:04:24]} Bxe4 {[%emt 0:00:40]} 22. Bd5 {[%emt 0:02:02]} Bxd5 {[%emt 0:01:13]} 23. Nxd5 {[%emt 0:00:07]} fxg5 {[%emt 0:09:01]} 24. f6 {[%emt 0:01:10]} h6 {[%emt 0:01:00]} 25. fxg7 {[%emt 0:00:07]} Rc6 {[%emt 0:00:55]} 26. Rh3 {[%emt 0:01:57]} f5 {[%emt 0:01:49]} 27. Rxh6 {[%emt 0:00:35]} Qxg7 {[%emt 0:00:09]} 28. Rg6 {[%emt 0:00:18]} 1-0

[Event "94th FRA-ch Open B 2019"]
[Site "Chartres"]
[Date "2019.08.20"]
[Round "4.6"]
[White "Maugin, Narada"]
[Black "Berthaut, Alexandre"]
[Result "1-0"]
[ECO "B76"]
[WhiteElo "1820"]
[BlackElo "1904"]
[Annotator "NA"]
[PlyCount "81"]
[EventDate "2019.08.17"]
[EventType "swiss"]
[EventCountry "FRA"]
[SourceTitle "playchess.com"]
[Source "ChessBase"]
[SourceQuality "1"]
[TimeControl "40/5400+30:1800+30"]

1. e4 {[%emt 0:00:00]} c5 {[%emt 0:00:01]} 2. Nc3 {[%emt 0:00:05]} g6 {[%emt 0:06:24]} 3. Nf3 {[%emt 0:02:00]} Bg7 {[%emt 0:01:01]} 4. d4 {[%emt 0:00:23]} cxd4 {[%emt 0:00:13]} 5. Nxd4 {[%emt 0:00:06]} Nc6 {[%emt 0:02:26]} 6. Be3 {[%emt 0:01:59]} d6 {[%emt 0:01:26]} 7. Qd2 {[%emt 0:01:50]} Nf6 {[%emt 0:01:22]} 8. f3 {[%emt 0:00:08]} O-O {[%emt 0:01:07]} 9. g4 {[%emt 0:00:08]} Nxd4 {[%emt 0:16:14]} 10. Bxd4 {[%emt 0:00:08]} Be6 {[%emt 0:00:18]} 11. O-O-O {[%emt 0:00:41]} Qa5 {[%emt 0:03:46]} 12. a3 {[%emt 0:00:34]} Rfc8 {[%emt 0:23:42]} 13. h4 {[%emt 1:28:28]} h5 {[%emt 0:05:53]} 14. gxh5 {[%emt 0:00:00]} Nxh5 {[%emt 0:05:10]} 15. Bxg7 {[%emt 0:00:00]} Kxg7 {[%emt 0:01:39]} 16. Rg1 {[%emt 0:00:00]} Rc5 {[%emt 0:06:51]} 17. f4 {[%emt 0:00:00]} Rac8 {[%emt 0:01:28]} 18. f5 {[%emt 0:00:00]} Rxc3 {[%emt 0:04:13]} 19. Qd4+ {[%emt 0:00:00]} Nf6 {[%emt 0:05:04]} 20. bxc3 {[%emt 0:00:00]} Qxa3+ {[%emt 0:09:23]} 21. Kd2 {[%emt 0:00:00]} Ba2 {[%emt 0:02:14]} 22. Bd3 {[%emt 0:00:00]} Qb2 {[%emt 0:00:29]} 23. fxg6 {[%emt 0:00:00]} e5 {[%emt 0:00:01]} 24. gxf7+ {[%emt 0:00:00]} Kxf7 {[%emt 0:00:11]} 25. Qb4 {[%emt 0:00:00]} Qxb4 {[%emt 0:00:58]} 26. cxb4 {[%emt 0:00:00]} Be6 {[%emt 0:00:39]} 27. Ra1 {[%emt 0:00:00]} a6 {[%emt 0:00:19]} 28. Raf1 {[%emt 0:00:00]} Rh8 {[%emt 0:00:07]} 29. Rh1 {[%emt 0:00:00]} Ke7 {[%emt 0:00:00]} 30. Rfg1 {[%emt 0:00:00]} Rh7 {[%emt 0:01:08]} 31. Ke3 {[%emt 0:00:00]} Nh5 {[%emt 0:00:48]} 32. Be2 {[%emt 0:00:00]} Nf4 {[%emt 0:00:00]} 33. Bg4 {[%emt 0:00:00]} Bf7 {[%emt 0:00:59]} 34. Bf5 {[%emt 0:00:00]} Rh8 {[%emt 0:00:50]} 35. h5 {[%emt 0:00:46]} Nxh5 {[%emt 0:00:32]} 36. Bg6 {[%emt 0:02:12]} Bxg6 {[%emt 0:00:23]} 37. Rxg6 {[%emt 0:00:16]} Nf4 {[%emt 0:00:38]} 38. Rxh8 {[%emt 0:00:56]} Nxg6 {[%emt 0:00:00]} 39. Rh7+ {[%emt 0:00:14]} Ke6 {[%emt 0:00:50]} 40. Rxb7 {[%emt 0:00:18]} Ne7 {[%emt 0:00:40]} 41. Rb6 {[%emt 0:31:16]} 1-0

[Event "94th FRA-ch Open B 2019"]
[Site "Chartres"]
[Date "2019.08.21"]
[Round "5.1"]
[White "Chabaud, Mathis"]
[Black "Pinson, Alexis"]
[Result "1-0"]
[ECO "B23"]
[WhiteElo "1915"]
[BlackElo "1841"]
[Annotator "NA"]
[PlyCount "61"]
[EventDate "2019.08.17"]
[EventType "swiss"]
[EventCountry "FRA"]
[SourceTitle "playchess.com"]
[Source "ChessBase"]
[SourceQuality "1"]
[TimeControl "40/5400+30:1800+30"]

1. e4 {[%emt 0:00:00]} c5 {[%emt 0:00:00]} 2. Nc3 {[%emt 0:00:00]} d6 {[%emt 0:00:00]} 3. d4 {[%emt 0:00:16]} cxd4 {[%emt 0:00:00]} 4. Qxd4 {[%emt 0:00:08]} Nc6 {[%emt 0:00:00]} 5. Qd2 {[%emt 0:00:28]} g6 {[%emt 0:00:49]} 6. b3 {[%emt 0:00:43]} Bg7 {[%emt 0:02:38]} 7. Bb2 {[%emt 0:00:17]} Nf6 {[%emt 0:00:36]} 8. O-O-O {[%emt 0:01:22]} O-O {[%emt 0:01:01]} 9. f3 {[%emt 0:02:05]} a6 {[%emt 0:02:45]} 10. h4 {[%emt 0:01:51]} Nh5 {[%emt 0:01:18]} 11. Nge2 {[%emt 0:04:22]} Ne5 {[%emt 0:08:31]} 12. Kb1 {[%emt 0:03:10]} b5 {[%emt 0:01:05]} 13. Nd5 {[%emt 0:02:15]} Rb8 {[%emt 0:04:33]} 14. Qe3 {[%emt 0:18:26]} Be6 {[%emt 0:06:53]} 15. g4 {[%emt 0:05:02]} Bxd5 {[%emt 0:06:07]} 16. exd5 {[%emt 0:01:25]} Nf6 {[%emt 0:02:26]} 17. h5 {[%emt 0:02:29]} Qc7 {[%emt 0:03:24]} 18. hxg6 {[%emt 0:04:56]} hxg6 {[%emt 0:02:21]} 19. Ng3 {[%emt 0:03:32]} Rfc8 {[%emt 0:00:52]} 20. c3 {[%emt 0:06:32]} Qb7 {[%emt 0:02:59]} 21. Bg2 {[%emt 0:14:29]} Nxd5 {[%emt 0:05:59]} 22. Qd2 {[%emt 0:02:04]} Nxc3+ {[%emt 0:01:42]} 23. Bxc3 {[%emt 0:00:37]} Nc4 {[%emt 0:00:05]} 24. bxc4 {[%emt 0:04:12]} bxc4+ {[%emt 0:00:05]} 25. Ka1 {[%emt 0:01:22]} Rc5 {[%emt 0:05:02]} 26. Rb1 {[%emt 0:02:38]} Rb5 {[%emt 0:00:43]} 27. Rxb5 {[%emt 0:00:13]} Qxb5 {[%emt 0:00:04]} 28. Bxg7 {[%emt 0:00:26]} Kxg7 {[%emt 0:00:16]} 29. Nf5+ {[%emt 0:02:34]} Kf6 {[%emt 0:02:15]} 30. g5+ {[%emt 0:00:17]} Kxf5 {[%emt 0:00:40]} 31. Bh3+ {[%emt 0:00:12]} 1-0

[Event "94th FRA-ch Open B 2019"]
[Site "Chartres"]
[Date "2019.08.21"]
[Round "5.2"]
[White "Fretel, Liza"]
[Black "Lucbernet, Thomas"]
[Result "0-1"]
[ECO "C06"]
[WhiteElo "1859"]
[BlackElo "1873"]
[Annotator "NA"]
[PlyCount "102"]
[EventDate "2019.08.17"]
[EventType "swiss"]
[EventCountry "FRA"]
[SourceTitle "playchess.com"]
[Source "ChessBase"]
[SourceQuality "1"]
[TimeControl "40/5400+30:1800+30"]

1. e4 {[%emt 0:00:00]} e6 {[%emt 0:00:09]} 2. d4 {[%emt 0:00:00]} d5 {[%emt 0:00:15]} 3. Nd2 {[%emt 0:00:13]} Nf6 {[%emt 0:00:50]} 4. e5 {[%emt 0:01:05]} Nfd7 {[%emt 0:00:10]} 5. Bd3 {[%emt 0:00:37]} c5 {[%emt 0:00:17]} 6. c3 {[%emt 0:00:07]} Nc6 {[%emt 0:00:19]} 7. Ne2 {[%emt 0:00:18]} cxd4 {[%emt 0:00:15]} 8. cxd4 {[%emt 0:00:05]} f6 {[%emt 0:00:22]} 9. exf6 {[%emt 0:00:33]} Nxf6 {[%emt 0:00:10]} 10. O-O {[%emt 0:00:54]} Bd6 {[%emt 0:00:23]} 11. Nf3 {[%emt 0:00:24]} Qc7 {[%emt 0:00:19]} 12. Nc3 {[%emt 0:02:03]} a6 {[%emt 0:00:23]} 13. Bg5 {[%emt 0:01:35]} O-O {[%emt 0:01:10]} 14. Bh4 {[%emt 0:01:28]} Nh5 {[%emt 0:03:13]} 15. Bg3 {[%emt 0:03:28]} Nxg3 {[%emt 0:06:04]} 16. fxg3 {[%emt 0:00:45]} g6 {[%emt 0:05:59]} 17. Qd2 {[%emt 0:04:53]} Qg7 {[%emt 0:08:06]} 18. Bc2 {[%emt 0:03:18]} Bd7 {[%emt 0:03:21]} 19. Rae1 {[%emt 0:01:06]} Rae8 {[%emt 0:04:35]} 20. Re2 {[%emt 0:07:19]} b5 {[%emt 0:15:16]} 21. Bb3 {[%emt 0:09:30]} Kh8 {[%emt 0:04:49]} 22. Ref2 {[%emt 0:04:39]} Bb8 {[%emt 0:09:56]} 23. a4 {[%emt 0:07:51]} b4 {[%emt 0:10:39]} 24. Ne2 {[%emt 0:02:06]} Bd6 {[%emt 0:01:25]} 25. Qd3 {[%emt 0:02:54]} a5 {[%emt 0:03:51]} 26. Rc1 {[%emt 0:03:23]} Ne7 {[%emt 0:05:00]} 27. Qa6 {[%emt 0:00:57]} Nf5 {[%emt 0:00:29]} 28. g4 {[%emt 0:07:02]} Ra8 {[%emt 0:01:03]} 29. Qd3 {[%emt 0:00:19]} Nh6 {[%emt 0:01:43]} 30. h3 {[%emt 0:01:55]} Nf7 {[%emt 0:01:11]} 31. g3 {[%emt 0:03:07]} Nd8 {[%emt 0:00:55]} 32. Kg2 {[%emt 0:01:58]} Nc6 {[%emt 0:00:17]} 33. h4 {[%emt 0:02:03]} Rae8 {[%emt 0:06:09]} 34. Rh1 {[%emt 0:02:53]} e5 {[%emt 0:01:17]} 35. Bxd5 {[%emt 0:03:26]} Nxd4 {[%emt 0:00:12]} 36. Nexd4 {[%emt 0:01:06]} exd4 {[%emt 0:00:12]} 37. h5 {[%emt 0:02:51]} Bxg4 {[%emt 0:02:33]} 38. hxg6 {[%emt 0:00:31]} h5 {[%emt 0:04:27]} 39. Rff1 {[%emt 0:07:43]} Re3 {[%emt 0:00:55]} 40. Qa6 {[%emt 0:02:34]} Qe7 {[%emt 0:00:44]} 41. Rf2 {[%emt 0:36:24]} Bxg3 {[%emt 0:23:36]} 42. Qb6 {[%emt 0:00:00]} Rexf3 {[%emt 0:06:05]} 43. Rxf3 {[%emt 0:00:00]} Qe2+ {[%emt 0:01:45]} 44. Kxg3 {[%emt 0:00:00]} Rxf3+ {[%emt 0:00:08]} 45. Bxf3 {[%emt 0:00:00]} Qxf3+ {[%emt 0:00:06]} 46. Kh4 {[%emt 0:00:00]} Qxh1+ {[%emt 0:01:05]} 47. Kg5 {[%emt 0:00:00]} Qc1+ {[%emt 0:00:12]} 48. Kf6 {[%emt 0:00:00]} Qf4+ {[%emt 0:00:18]} 49. Ke7 {[%emt 0:00:00]} Kg7 {[%emt 0:01:11]} 50. Qxa5 {[%emt 0:00:00]} Qf6+ {[%emt 0:00:21]} 51. Ke8 {[%emt 0:00:00]} Qf8# {[%emt 0:01:20]} 0-1